fUST/lending_fUST_20241203
["ID","MTS","AMOUNT","RATE_DAILY","PERIOD"]
[344030617,1733230028382,-1712.09168622,0.0004,120]
[344030618,1733230028403,-909.68633678,0.0004,30]
[344030619,1733230028425,-200.0,0.0004,120]
[344030620,1733230028449,-51619.62080329,0.0004,120]
[344030621,1733230028475,-16134.09926756,0.0004,30]
[344030622,1733230028500,-291.99418949,0.0004,120]
[344030623,1733230028523,-250.0,0.0004,30]
[344030624,1733230028544,-603.35848693,0.00040294,2]
[344030625,1733230028570,-999.0,0.00040547,120]
[344030626,1733230028592,-300.0,0.000409,20]
[344030627,1733230028614,-200.0,0.00041,120]
[344030628,1733230028635,-2078.65692715,0.00041,120]
[344030629,1733230028656,-7214.23873954,0.00041,30]
[344030630,1733230028678,-25571.94418196,0.00041,60]
[344030631,1733230028703,-152.0,0.00041041,31]
[344030632,1733230028724,-1000.0,0.00041095,120]
[344030633,1733230028835,-1011.47149273,0.00041095,120]
[344030634,1733230028857,-2000.0,0.00041095,30]
[344030635,1733230028880,-2000.0,0.00041095,30]
[344030636,1733230028902,-2000.0,0.00041095,30]
[344030637,1733230028923,-2000.0,0.00041095,30]
[344030638,1733230028944,-2000.0,0.00041095,30]
[344030639,1733230028974,-2000.0,0.00041095,30]
[344030640,1733230028996,-2000.0,0.00041095,30]
[344030641,1733230029019,-2000.0,0.00041095,30]
[344030642,1733230029040,-2138.44622196,0.00041095,30]
[344030643,1733230029061,-1005.71842646,0.00041095,30]
[344030644,1733230029082,-180.689633,0.00041096,2]
[344030645,1733230029103,-2915.07701999,0.000412,30]
[344030646,1733230029125,-152.0,0.00041361,31]
[344030647,1733230029148,-999.0,0.00041643,120]
[344030648,1733230029171,-152.0,0.0004168,31]
[344030649,1733230029191,-152.0,0.0004168,31]
[344030650,1733230029219,-160.0,0.0004175,5]
[344030651,1733230029242,-300.0,0.000419,22]
[344030652,1733230029265,-500.0,0.00041973,10]
[344030653,1733230029288,-44192.49944507,0.00042,30]
[344030654,1733230036096,-159983.72002227,0.00042,30]
[344030655,1733230036117,-88444.46913687,0.00042,30]
[344030657,1733230146108,-1169.27083333,0.00025652,2]
[344030658,1733230146129,-203.9481766,0.00028856,2]
[344030659,1733230146149,-971.0073661,0.00029109,2]
[344030660,1733230146170,-243.91,0.000306,2]
[344030661,1733230146191,-6666.0,0.00030888,2]
[344030662,1733230146213,-1169.27083333,0.00030987,7]
[344030663,1733230146234,-1169.27083333,0.00030987,7]
[344030664,1733230146256,-1169.27083333,0.00030987,7]
[344030665,1733230146277,-3480.1261066,0.00030988,2]
[344030666,1733230146318,-187.0,0.000376,13]
[344030667,1733230167734,1740.0630533,0.00030988,2]
[344030673,1733230175569,500.0,0.00028988,7]
[344030674,1733230182374,1169.27083333,0.00030988,7]
[344030675,1733230182675,1169.27083333,0.00030988,7]
[344030676,1733230182983,1169.27083333,0.00030988,7]
[344030677,1733230188366,1169.27083333,0.00025652,2]
[344030678,1733230205716,500.0,0.00028988,7]
[344030679,1733230219743,9600.0,0.00026,2]
[344030680,1733230230524,223.97,0.00033579,2]
[344030716,1733230232530,-5966.56234685,0.00030988,10]
[344030717,1733230232549,-5718.56624327,0.00030988,10]
[344030718,1733230232566,-971.00223701,0.00030988,10]
[344030719,1733230232578,-9290.70428569,0.00030988,10]
[344030727,1733230233320,2337.4345547,0.00029988,2]
[344030743,1733230238603,-814008.67944954,0.00030988,10]
[344030744,1733230238641,-2446.51197704,0.00030988,10]
[344030746,1733230239394,-27603.13212879,0.00030988,10]
[344030747,1733230239406,-1678.92876603,0.00030988,10]
[344030805,1733230243515,-601.83828374,0.00030988,10]
[344030818,1733230243630,-4052.76529086,0.00030988,10]
[344030822,1733230245478,1637.73329066,0.00030888,2]
[344030823,1733230245500,698.65688329,0.00030888,2]
[344030853,1733230246585,-3793.3526706,0.00030988,10]
[344030854,1733230246597,-254.52839303,0.00030988,10]
[344030859,1733230247829,-6730.56623221,0.00030988,10]
[344030860,1733230247840,-3045.37964897,0.00030988,2]
[344030861,1733230247850,-24031.62111336,0.00030988,2]
[344030862,1733230247890,500.0,0.00030987,2]
[344030863,1733230247918,500.0,0.00030987,2]
[344030864,1733230247943,300.56172,0.00030593,30]
[344030865,1733230252418,736.94,0.00030978,10]
[344030866,1733230258519,507.77322457,0.00028988,7]
[344030867,1733230259596,500.0,0.00031041,7]
[344030868,1733230259623,370.93666278,0.00030988,7]
[344030869,1733230260557,525.94770123,0.00028988,7]
[344030871,1733230262661,500.0,0.00028988,7]
[344030872,1733230265725,1169.27083333,0.00025652,2]
[344030873,1733230273735,777.42,0.00028986,7]
[344030874,1733230273994,162.82064184,0.0002926,7]
[344030875,1733230274018,614.59935816,0.0002926,7]
[344030876,1733230274276,629.89200884,0.00029534,7]
[344030877,1733230274301,147.52799116,0.00029534,7]
[344030878,1733230277671,203.1994775,0.00028986,7]
[344030879,1733230282357,500.0,0.00028988,7]
[344030880,1733230284276,501.80122249,0.00028988,7]
[344030881,1733230288410,502.16647917,0.00028988,7]
[344030882,1733230294773,500.0,0.00028988,7]
[344030883,1733230307811,165.790204,0.00029252,2]
[344030885,1733230318721,500.0,0.00028986,7]
[344030887,1733230343351,84.08282723,0.00025652,2]
[344030888,1733230343376,1085.1880061,0.00025652,2]
[344030889,1733230346815,160.039933,0.00013973,2]
[344030905,1733231092638,160.039933,0.00013973,2]
[344030906,1733231141129,-324.65620437,0.00025405,2]
[344030907,1733231150108,-643.01797192,0.00025405,2]
[344030909,1733231242138,-393.12154712,0.0002536,2]
[344030912,1733231347100,-1169.27083333,0.00025337,2]
[344030913,1733231347122,-462.1432892,0.00027453,2]
[344030914,1733231347143,-586.97,0.00028986,7]
[344030915,1733231347164,-500.0,0.00028986,7]
[344030916,1733231347184,-500.0,0.00028986,7]
[344030917,1733231347205,-500.0,0.00028986,7]
[344030918,1733231347226,-510.19118053,0.00028986,7]
[344030919,1733231347247,-500.0,0.00028986,7]
[344030920,1733231347268,-500.0,0.00028986,7]
[344030921,1733231347292,-500.0,0.00028986,7]
[344030922,1733231347312,-500.0,0.00028987,7]
[344030923,1733231347332,-500.0,0.00028987,7]
[344030924,1733231347352,-500.0,0.00028987,7]
[344030925,1733231347372,-500.0,0.00028987,7]
[344030926,1733231347392,-500.0,0.00028987,7]
[344030927,1733231347412,-500.0,0.00028987,7]
[344030928,1733231347432,-500.0,0.00028987,7]
[344030929,1733231347452,-500.0,0.00028987,7]
[344030930,1733231347472,-345.81886338,0.00028987,7]
[344030931,1733231347495,-511.94581365,0.00028987,7]
[344030932,1733231347515,-516.11246783,0.00028987,7]
[344030933,1733231347539,-506.41948239,0.00028987,7]
[344030934,1733231347558,-511.15748262,0.00028987,7]
[344030935,1733231347578,-500.0,0.00028987,7]
[344030936,1733231347599,-511.36904065,0.00028987,7]
[344030937,1733231347621,-500.0,0.00028987,7]
[344030938,1733231347641,-500.0,0.00028987,7]
[344030939,1733231347661,-268.19706351,0.00028987,7]
[344030940,1733231347682,-500.0,0.00028987,7]
[344030941,1733231347701,-504.57653675,0.00028987,7]
[344030942,1733231347722,-500.0,0.00028987,7]
[344030943,1733231347742,-500.0,0.00028987,7]
[344030944,1733231347761,-500.0,0.00028987,7]
[344030945,1733231347784,-500.0,0.00028987,7]
[344030946,1733231347804,-501.32925709,0.00028987,7]
[344030947,1733231347824,-500.0,0.00028987,7]
[344030948,1733231347844,-167.23870199,0.00028987,7]
[344030949,1733231347867,-502.22985314,0.00028987,7]
[344030950,1733231347888,-500.0,0.00028987,7]
[344030951,1733231347991,-500.0,0.00028987,7]
[344030952,1733231348014,-581.62574882,0.00028987,7]
[344030953,1733231348038,-208.51483579,0.00028987,7]
[344030954,1733231348058,-500.0,0.00028987,7]
[344030955,1733231348079,-500.0,0.00028987,7]
[344030956,1733231348101,-502.40795141,0.00028987,7]
[344030957,1733231348123,-500.0,0.00028987,7]
[344030958,1733231348144,-500.0,0.00028987,7]
[344030959,1733231348164,-500.0,0.00028987,7]
[344030960,1733231348184,-501.38805031,0.00028987,7]
[344030961,1733231348205,-568.37,0.00028987,7]
[344030962,1733231348225,-500.0,0.00028987,7]
[344030963,1733231348245,-500.0,0.00028987,7]
[344030964,1733231348267,-500.0,0.00028987,7]
[344030965,1733231348290,-168.0,0.00028987,7]
[344030966,1733231348311,-500.0,0.00028987,7]
[344030967,1733231348333,-500.0,0.00028987,7]
[344030968,1733231348354,-500.0,0.00028987,7]
[344030969,1733231348375,-500.0,0.00028987,7]
[344030970,1733231348396,-509.42669774,0.00028987,7]
[344030971,1733231348416,-500.0,0.00028987,7]
[344030972,1733231348437,-503.83550965,0.00028987,7]
[344030973,1733231348457,-500.0,0.00028987,7]
[344030974,1733231348479,-500.0,0.00028987,7]
[344030975,1733231348500,-500.0,0.00028987,7]
[344030976,1733231348522,-500.0,0.00028987,7]
[344030977,1733231348545,-500.0,0.00028987,7]
[344030978,1733231348565,-564.69599439,0.00028987,7]
[344030979,1733231348587,-500.0,0.00028987,7]
[344030980,1733231348608,-501.0350142,0.00028987,7]
[344030981,1733231348630,-500.0,0.00028987,7]
[344030982,1733231348652,-500.0,0.00028987,7]
[344030983,1733231348672,-500.0,0.00028987,7]
[344030984,1733231348693,-505.75812799,0.00028987,7]
[344030985,1733231348714,-500.0,0.00028987,7]
[344030986,1733231348735,-236.08579543,0.00028987,7]
[344030987,1733231348756,-323.47102629,0.00028987,7]
[344030988,1733231348777,-542.08600892,0.00028987,7]
[344030989,1733231348797,-493.06866397,0.00028987,7]
[344030990,1733231348818,-500.0,0.00028987,7]
[344030991,1733231348840,-500.0,0.00028987,7]
[344030992,1733231348861,-500.0,0.00028987,7]
[344030993,1733231348882,-500.0,0.00028987,7]
[344030994,1733231348904,-701.07,0.00028987,7]
[344030995,1733231348931,-507.71204536,0.00028987,7]
[344030996,1733231348954,-500.0,0.00028987,7]
[344030997,1733231348977,-400.78360448,0.00028987,7]
[344030998,1733231348999,-500.0,0.00028987,7]
[344030999,1733231349020,-500.0,0.00028987,7]
[344031000,1733231349045,-500.0,0.00028987,7]
[344031001,1733231349066,-500.0,0.00028987,7]
[344031002,1733231349087,-500.0,0.00028988,7]
[344031003,1733231349109,-500.0,0.00028988,7]
[344031004,1733231349129,-500.0,0.00028988,7]
[344031005,1733231349149,-500.0,0.00028988,7]
[344031006,1733231349170,-500.5188417,0.00028988,7]
[344031007,1733231349190,-500.0,0.00028988,7]
[344031008,1733231349210,-501.43599563,0.00028988,7]
[344031009,1733231349231,-310.33243193,0.00028988,7]
[344031010,1733231349253,-500.0,0.00028988,7]
[344031011,1733231349274,-500.0,0.00028988,7]
[344031012,1733231349296,-500.47062956,0.00028988,7]
[344031013,1733231349316,-500.0,0.00028988,7]
[344031014,1733231349337,-509.01262864,0.00028988,7]
[344031015,1733231349357,-500.0,0.00028988,7]
[344031016,1733231349377,-500.0,0.00028988,7]
[344031017,1733231349398,-500.0,0.00028988,7]
[344031018,1733231349418,-500.0,0.00028988,7]
[344031019,1733231349440,-502.32828442,0.00028988,7]
[344031020,1733231349461,-500.0,0.00028988,7]
[344031021,1733231349483,-500.0,0.00028988,7]
[344031022,1733231349505,-503.14317604,0.00028988,7]
[344031023,1733231349529,-500.0,0.00028988,7]
[344031024,1733231349551,-502.12768802,0.00028988,7]
[344031025,1733231349573,-500.0,0.00028988,7]
[344031026,1733231349594,-501.53772456,0.00028988,7]
[344031027,1733231349616,-500.0,0.00028988,7]
[344031028,1733231349636,-498.15508231,0.00028988,7]
[344031029,1733231349657,-500.0,0.00028988,7]
[344031030,1733231349679,-500.0,0.00028988,7]
[344031031,1733231349700,-500.0,0.00028988,7]
[344031032,1733231349720,-500.0,0.00028988,7]
[344031033,1733231349740,-500.0,0.00028988,7]
[344031034,1733231349760,-501.45459868,0.00028988,7]
[344031035,1733231349784,-535.14823897,0.00028988,7]
[344031036,1733231349805,-501.34381077,0.00028988,7]
[344031037,1733231349825,-500.0,0.00028988,7]
[344031038,1733231349845,-501.692362,0.00028988,7]
[344031039,1733231349867,-501.81777035,0.00028988,7]
[344031040,1733231349887,-500.0,0.00028988,7]
[344031041,1733231349908,-502.81362554,0.00028988,7]
[344031042,1733231349928,-500.0,0.00028988,7]
[344031043,1733231349949,-500.78699268,0.00028988,7]
[344031044,1733231349972,-501.06422104,0.00028988,7]
[344031045,1733231349994,-503.28157394,0.00028988,7]
[344031046,1733231350016,-500.0,0.00028988,7]
[344031047,1733231350038,-500.0,0.00028988,7]
[344031048,1733231350059,-503.48892706,0.00028988,7]
[344031049,1733231350080,-500.0,0.00028988,7]
[344031050,1733231350100,-502.03812275,0.00028988,7]
[344031051,1733231350122,-418.46678495,0.00028988,7]
[344031052,1733231350161,-249.97877524,0.00028988,7]
[344031053,1733231350288,-250.02122476,0.00028988,7]
[344031054,1733231350308,-501.94563409,0.00028988,7]
[344031055,1733231350327,-437.19317213,0.00028988,7]
[344031056,1733231350346,-500.0,0.00028988,7]
[344031057,1733231350365,-501.9481149,0.00028988,7]
[344031058,1733231350384,-500.0,0.00028988,7]
[344031059,1733231350405,-500.0,0.00028988,7]
[344031060,1733231350498,-500.0,0.00028988,7]
[344031061,1733231350518,-501.57192232,0.00028988,7]
[344031062,1733231350541,-500.0,0.00028988,7]
[344031063,1733231350561,-244.63256081,0.00028988,7]
[344031064,1733231350581,-506.87986711,0.00028988,7]
[344031065,1733231350601,-500.0,0.00028988,7]
[344031066,1733231350623,-505.55317778,0.00028988,7]
[344031067,1733231350642,-605.93598303,0.00028988,7]
[344031068,1733231350662,-500.0,0.00028988,7]
[344031069,1733231350681,-500.0,0.00028988,7]
[344031070,1733231350701,-450.52534337,0.00028988,7]
[344031071,1733231350720,-500.0,0.00028988,7]
[344031072,1733231350762,-515.0146541,0.00028988,7]
[344031073,1733231350803,-500.0,0.00028988,7]
[344031074,1733231350847,-500.0,0.00028988,7]
[344031075,1733231350892,-500.0,0.00028988,7]
[344031076,1733231350913,-506.95630828,0.00028988,7]
[344031077,1733231350933,-500.0,0.00028988,7]
[344031078,1733231350955,-506.22992813,0.00028988,7]
[344031079,1733231350979,-501.14625123,0.00028988,7]
[344031080,1733231350998,-500.0,0.00028988,7]
[344031081,1733231351018,-507.42504834,0.00028988,7]
[344031082,1733231351039,-504.00820488,0.00028988,7]
[344031083,1733231351058,-287.80094327,0.00028988,7]
[344031084,1733231351078,-500.0,0.00028988,7]
[344031085,1733231351097,-500.0,0.00028988,7]
[344031086,1733231351117,-504.94576121,0.00028988,7]
[344031087,1733231351137,-500.0,0.00028988,7]
[344031088,1733231351157,-606.18,0.00028988,7]
[344031089,1733231351177,-387.40526426,0.00028988,7]
[344031090,1733231351197,-269.103436,0.00028988,7]
[344031091,1733231351229,-231.80397202,0.00028988,7]
[344031092,1733231351249,-501.00253617,0.00028988,7]
[344031093,1733231351271,-500.0,0.00028988,7]
[344031094,1733231351296,-500.0,0.00028988,7]
[344031095,1733231351320,-500.0,0.00028988,7]
[344031096,1733231351344,-506.74047524,0.00028988,7]
[344031097,1733231351373,-500.0,0.00028988,7]
[344031098,1733231351395,-500.0,0.00028988,7]
[344031099,1733231351418,-500.0,0.00028988,7]
[344031100,1733231351439,-500.0,0.00028988,7]
[344031101,1733231351463,-500.0,0.00028988,7]
[344031102,1733231351487,-305.55,0.0002926,7]
[344031103,1733231351514,-500.0,0.0002926,7]
[344031104,1733231351539,-183.66242603,0.00029261,7]
[344031105,1733231351565,-500.0,0.00029261,7]
[344031106,1733231351589,-519.22871882,0.00029261,7]
[344031107,1733231351616,-500.0,0.00029261,7]
[344031108,1733231351640,-211.05,0.00029261,7]
[344031109,1733231351665,-500.0,0.00029261,7]
[344031110,1733231351689,-418.35,0.00029261,7]
[344031111,1733231351717,-500.0,0.00029261,7]
[344031112,1733231351739,-500.0,0.00029261,7]
[344031113,1733231351761,-500.0,0.00029261,7]
[344031114,1733231351786,-500.0,0.00029261,7]
[344031115,1733231351808,-701.07,0.00029261,7]
[344031116,1733231351830,-500.0,0.00029261,7]
[344031117,1733231351853,-500.0,0.00029262,7]
[344031118,1733231351874,-500.0,0.00029262,7]
[344031119,1733231351895,-500.0,0.00029262,7]
[344031120,1733231351915,-412.24,0.00029262,7]
[344031121,1733231351936,-517.73281337,0.00029262,7]
[344031122,1733231351959,-500.0,0.00029262,7]
[344031123,1733231351979,-500.0,0.00029262,7]
[344031124,1733231352002,-500.0,0.00029262,7]
[344031125,1733231352022,-500.0,0.00029262,7]
[344031126,1733231352047,-275.18,0.00029262,7]
[344031127,1733231352068,-508.56,0.00029523,3]
[344031128,1733231352089,-515.21070918,0.00029533,7]
[344031129,1733231352110,-505.8261779,0.00029533,7]
[344031130,1733231352133,-500.0,0.00029533,7]
[344031131,1733231352155,-504.98318988,0.00029533,7]
[344031132,1733231352178,-874.47,0.00029533,7]
[344031133,1733231352199,-500.0,0.00029535,7]
[344031134,1733231352220,-500.0,0.00029535,7]
[344031135,1733231352241,-500.0,0.00029535,7]
[344031136,1733231352262,-500.0,0.00029535,7]
[344031137,1733231352285,-701.07,0.00029535,7]
[344031138,1733231352306,-500.0,0.00029535,7]
[344031139,1733231352327,-242.81,0.00029536,7]
[344031140,1733231352347,-230.28,0.00029536,7]
[344031141,1733231352368,-513.18027718,0.00029536,7]
[344031142,1733231352389,-518.38,0.00029807,7]
[344031143,1733231352411,-874.47,0.00029807,7]
[344031144,1733231352433,-520.56,0.00029809,7]
[344031145,1733231352454,-277.07,0.00029809,7]
[344031146,1733231352475,-500.0,0.00029809,7]
[344031147,1733231352495,-500.0,0.00029809,7]
[344031148,1733231352519,-701.07,0.00029809,7]
[344031149,1733231352543,-339.25242942,0.00029809,7]
[344031150,1733231352564,-5000.0,0.0003,7]
[344031151,1733231352585,-406.0,0.0003,2]
[344031152,1733231352607,-874.47,0.00030081,7]
[344031153,1733231352630,-500.0,0.00030083,7]
[344031154,1733231352650,-500.0,0.00030083,7]
[344031155,1733231352671,-701.07,0.00030083,7]
[344031156,1733231352692,-874.47,0.00030355,7]
[344031157,1733231352714,-500.0,0.00030357,7]
[344031158,1733231352734,-500.0,0.00030357,7]
[344031159,1733231352756,-701.07,0.00030357,7]
[344031160,1733231352781,-874.47,0.00030629,7]
[344031161,1733231352803,-500.0,0.00030631,7]
[344031162,1733231352824,-500.0,0.00030631,7]
[344031163,1733231352845,-701.07,0.00030631,7]
[344031164,1733231352866,-500.0,0.00030886,2]
[344031165,1733231352961,-874.47,0.00030903,7]
[344031166,1733231352983,-500.0,0.00030905,7]
[344031167,1733231353004,-500.0,0.00030905,7]
[344031168,1733231353025,-701.07,0.00030905,7]
[344031169,1733231353051,-6666.0,0.00030923,2]
[344031170,1733231353073,-500.0,0.00030985,2]
[344031171,1733231353095,-500.0,0.00030985,2]
[344031172,1733231353118,-500.0,0.00030985,2]
[344031173,1733231353140,-500.0,0.00030985,2]
[344031174,1733231353161,-500.0,0.00030985,2]
[344031175,1733231353182,-500.0,0.00030985,2]
[344031176,1733231353203,-300.0,0.00030985,2]
[344031177,1733231353225,-500.0,0.00030985,2]
[344031178,1733231353248,-500.0,0.00030985,2]
[344031179,1733231353271,-500.0,0.00030985,2]
[344031180,1733231353296,-500.0,0.00030985,2]
[344031181,1733231353317,-252.90921459,0.00030985,2]
[344031182,1733231353339,-500.52952654,0.00030986,7]
[344031183,1733231353360,-501.74756336,0.00030986,7]
[344031184,1733231353381,-500.0,0.00030986,7]
[344031185,1733231353402,-552.53472318,0.00030986,7]
[344031186,1733231353423,-501.38179747,0.00030986,7]
[344031187,1733231353445,-500.0,0.00030986,7]
[344031188,1733231353466,-500.0,0.00030986,7]
[344031189,1733231353487,-500.0,0.00030986,7]
[344031190,1733231353510,-503.48960317,0.00030986,7]
[344031191,1733231353535,-539.96067333,0.00030986,7]
[344031192,1733231353557,-500.0,0.00030986,7]
[344031193,1733231353578,-500.0,0.00030986,7]
[344031194,1733231353600,-500.0,0.00030986,7]
[344031195,1733231353622,-501.89749434,0.00030986,7]
[344031196,1733231353643,-500.80672594,0.00030986,7]
[344031197,1733231353665,-308.27798447,0.00030986,7]
[344031198,1733231353687,-500.0,0.00030986,7]
[344031199,1733231353709,-500.0,0.00030986,7]
[344031200,1733231353731,-500.0,0.00030986,7]
[344031201,1733231353753,-500.0,0.00030986,7]
[344031202,1733231353773,-500.0,0.00030986,7]
[344031203,1733231353797,-500.0,0.00030986,7]
[344031204,1733231353820,-500.0,0.00030986,7]
[344031205,1733231353846,-500.0,0.00030986,7]
[344031206,1733231353868,-555.30793289,0.00030986,7]
[344031207,1733231353889,-500.0,0.00030986,7]
[344031208,1733231353911,-442.76302014,0.00030986,7]
[344031209,1733231353933,-500.0,0.00030986,7]
[344031210,1733231353955,-618.79257849,0.00030986,7]
[344031211,1733231353980,-265.08823347,0.00030986,7]
[344031212,1733231354002,-174.12749284,0.00030986,7]
[344031213,1733231354024,-500.0,0.00030986,7]
[344031214,1733231354051,-500.0,0.00030986,7]
[344031215,1733231354073,-505.40452947,0.00030986,7]
[344031216,1733231354095,-500.0,0.00030986,7]
[344031217,1733231354117,-504.43934891,0.00030986,7]
[344031218,1733231354140,-500.0,0.00030988,7]
[344031219,1733231354163,-500.0,0.00030988,7]
[344031220,1733231354184,-133.13783895,0.00030988,7]
[344031221,1733231359114,-159.05036513,0.00028887,2]
[344031222,1733231359139,-500.0,0.00028988,7]
[344031223,1733231359161,-500.0,0.00028988,7]
[344031224,1733231359184,-508.01798971,0.00029262,7]
[344031225,1733231359206,-500.0,0.00029262,7]
[344031226,1733231359232,-512.05185354,0.00029536,7]
[344031227,1733231359255,-372.52057282,0.00030988,7]
[344031228,1733231359277,-507.51436392,0.00030988,7]
[344031229,1733231359304,-500.0,0.00030988,7]
[344031230,1733231359325,-506.13617883,0.00030988,7]
[344031231,1733231359347,-500.0,0.00030988,7]
[344031232,1733231359368,-501.39504332,0.00030988,7]
[344031233,1733231359390,-511.3939711,0.00030988,7]
[344031234,1733231359411,-500.0,0.00030988,7]
[344031235,1733231359432,-500.0,0.00030988,7]
[344031236,1733231359454,-504.59913522,0.00030988,7]
[344031237,1733231359477,-500.0,0.00030988,7]
[344031238,1733231359500,-500.0,0.00030988,7]
[344031239,1733231359525,-507.3068278,0.00030988,7]
[344031240,1733231359553,-504.70259006,0.00030988,7]
[344031241,1733231359577,-502.82845426,0.00030988,7]
[344031242,1733231359601,-500.0,0.00030988,7]
[344031243,1733231359626,-500.0,0.00030988,7]
[344031244,1733231359650,-502.12711322,0.00030988,7]
[344031245,1733231359674,-501.53659346,0.00030988,7]
[344031246,1733231359697,-500.0,0.00030988,7]
[344031247,1733231359722,-500.0,0.00030988,7]
[344031248,1733231359746,-500.0,0.00030988,7]
[344031249,1733231359770,-500.0,0.00030988,7]
[344031250,1733231359802,-500.0,0.00030988,7]
[344031251,1733231359824,-510.57138883,0.00030988,7]
[344031252,1733231359846,-500.0,0.00030988,7]
[344031253,1733231359868,-500.0,0.00030988,7]
[344031254,1733231359891,-507.61771653,0.00030988,7]
[344031255,1733231359913,-504.63982822,0.00030988,7]
[344031256,1733231359936,-500.0,0.00030988,7]
[344031257,1733231359958,-505.78456851,0.00030988,7]
[344031258,1733231359982,-504.03531445,0.00030988,7]
[344031259,1733231360003,-505.34096847,0.00030988,7]
[344031260,1733231360121,-533.1,0.00030988,7]
[344031261,1733231360144,-500.0,0.00030988,7]
[344031262,1733231360165,-558.02,0.00030988,7]
[344031263,1733231360186,-500.0,0.00030988,7]
[344031264,1733231360207,-500.0,0.00030988,7]
[344031265,1733231360227,-528.22087996,0.00030988,7]
[344031266,1733231360248,-502.35617554,0.00030988,7]
[344031267,1733231360269,-500.0,0.00030988,7]
[344031268,1733231360294,-500.0,0.00030988,7]
[344031269,1733231360315,-508.44559478,0.00030988,7]
[344031270,1733231360335,-500.0,0.00030988,7]
[344031271,1733231360356,-500.0,0.00030988,7]
[344031272,1733231360378,-261.65,0.00030988,7]
[344031273,1733231360399,-500.0,0.00030988,7]
[344031274,1733231360419,-500.0,0.00030988,7]
[344031275,1733231360441,-550.38,0.00030988,7]
[344031276,1733231360461,-500.0,0.00030988,7]
[344031277,1733231360484,-501.64626552,0.00030988,7]
[344031278,1733231360506,-500.0,0.00030988,7]
[344031279,1733231360527,-798.33417055,0.00030988,7]
[344031280,1733231360550,-151.0,0.00031016,7]
[344031281,1733231360575,-241.085951,0.00031016,7]
[344031282,1733231360596,-314.50318754,0.00031022,2]
[344031283,1733231360618,-329.88261965,0.00031022,2]
[344031284,1733231360639,-171.52230487,0.00031022,2]
[344031285,1733231360662,-43595.42482301,0.00031022,2]
[344031286,1733231360688,-151.0,0.00031023,7]
[344031287,1733231360708,-151.0,0.00031023,7]
[344031288,1733231360729,-293.61964,0.00031023,7]
[344031289,1733231360750,-536.417506,0.00031023,7]
[344031290,1733231360772,-536.417506,0.00031023,7]
[344031291,1733231360795,-536.417506,0.00031023,7]
[344031292,1733231360821,-536.417506,0.00031023,7]
[344031293,1733231360843,-536.417506,0.00031023,7]
[344031294,1733231360864,-536.417506,0.00031023,7]
[344031295,1733231360884,-536.417506,0.00031023,7]
[344031296,1733231360904,-536.417506,0.00031023,7]
[344031297,1733231360924,-536.417506,0.00031023,7]
[344031298,1733231360947,-536.417506,0.00031023,7]
[344031299,1733231360973,-536.417506,0.00031023,7]
[344031300,1733231360993,-536.417506,0.00031023,7]
[344031301,1733231361019,-536.417506,0.00031023,7]
[344031302,1733231361043,-536.417506,0.00031023,7]
[344031303,1733231361067,-536.417506,0.00031023,7]
[344031304,1733231361089,-536.417506,0.00031023,7]
[344031305,1733231361110,-536.417506,0.00031023,7]
[344031306,1733231361132,-536.417506,0.00031023,7]